bitfinex/quotes_SOLUSD_20260302
["timestamp","ask_amount","ask_price","bid_price","bid_amount"]
[1772469134505,3.69383402,89.05,88.934,185.53084308]
[1772469134506,2.24571975,89.029,88.971,2.39501302]
[1772469135020,39.31126659,89.033,88.971,2.39501302]
[1772469135224,8.07876083,89.03,88.971,2.39501302]
[1772469135438,39.31126659,89.033,88.971,2.39501302]
[1772469135439,11.23179045,89.033,88.971,2.39501302]
[1772469135633,11.23115972,89.038,88.976,2.39501302]
[1772469136020,11.23115972,89.038,88.978,2.39501302]
[1772469136208,11.23115972,89.038,88.98,2.39501302]
[1772469136406,11.23115972,89.038,88.982,2.39501302]
[1772469136908,11.23115972,89.038,88.981,1.12383542]
[1772469136909,11.23115972,89.038,88.99,2.39501302]
[1772469137716,11.23115972,89.038,88.992,2.42286145]
[1772469137916,44.91034957,89.067,88.991,39.32981986]
[1772469137917,8.07876083,89.07,89.0,2.42286145]
[1772469138128,10.33028602,89.08,89.014,2.42286145]
[1772469138323,11.22599041,89.079,89.02,2.42286145]
[1772469138630,8.07876083,89.11,89.033,2.70718459]
[1772469138827,11.22208506,89.11,89.04,2.56502302]
[1772469139128,19.30084589,89.11,89.05,2.42286145]
[1772469139329,8.07876083,89.1,89.05,2.42286145]
[1772469139530,10.33169594,89.1,89.05,2.42286145]
[1772469139713,10.33169594,89.1,89.052,2.42286145]
[1772469139907,11.22347052,89.099,89.052,2.42286145]
[1772469140926,36.13397348,89.11,89.052,2.42286145]
[1772469140927,11.222211,89.109,89.052,2.42286145]
[1772469141428,8.07876083,89.1,89.06,2.42286145]
[1772469141621,2.25706846,89.079,89.023,2.42286145]
[1772469141827,8.07876083,89.06,89.024,11.23292595]
[1772469142311,8.07876083,89.06,89.025,2.42286145]
[1772469142634,8.07876083,89.06,89.024,39.31524083]
[1772469142635,8.07876083,89.08,89.031,2.42286145]
[1772469142813,2.25841471,89.107,89.04,0.28432314]
[1772469143013,10.33717554,89.12,89.061,2.42286145]
[1772469143724,11.22095176,89.119,89.062,39.29846623]
[1772469143914,11.22095176,89.119,89.063,2.42286145]
[1772469144625,2.26106101,89.109,89.063,2.42286145]
[1772469144928,8.07876083,89.1,89.063,2.42286145]
[1772469145835,11.22347052,89.099,89.064,11.22788107]
[1772469146314,8.07876083,89.09,89.05,11.22964626]
[1772469146624,13.48711738,89.099,89.051,2.42286145]
[1772469146810,8.07876083,89.09,89.051,2.42286145]
[1772469147009,2.26364686,89.098,89.051,2.42286145]
[1772469147215,2.26364686,89.109,89.051,2.42286145]
[1772469147413,2.26364686,89.109,89.04,1.12309074]
[1772469147414,8.07876083,89.08,89.041,2.42286145]
[1772469147610,2.26364686,89.089,89.041,2.42286145]
[1772469147826,11.22473032,89.089,89.043,2.42286145]
[1772469148418,0.053,118.78,89.053,2.42286145]
[1772469148419,8.07876083,89.11,89.053,2.42286145]
[1772469149827,8.07876083,89.11,89.03,2.42286145]
[1772469149828,8.07876083,89.07,89.03,2.42286145]
[1772469150537,8.07876083,89.09,89.03,2.42286145]
[1772469150716,8.07876083,89.07,89.003,2.42286145]
[1772469150917,8.07876083,89.08,89.021,0.28432314]
[1772469151116,8.07876083,89.08,89.03,2.42286145]
[1772469151332,8.07876083,89.08,89.032,2.42286145]
[1772469151533,11.22415139,89.094,89.04,2.42286145]
[1772469151722,11.22415139,89.094,89.042,2.42286145]
[1772469152043,11.22415139,89.094,89.044,2.42286145]
[1772469152437,28.05,119.0,89.052,2.42286145]
[1772469152438,8.07876083,89.1,89.052,2.42286145]
[1772469152936,10.34981625,89.1,89.052,2.42286145]
[1772469153140,2.27105542,89.099,89.052,2.42286145]
[1772469153438,2.27105542,89.089,89.044,2.42286145]
[1772469153639,8.07876083,89.08,89.044,2.42286145]
[1772469154835,11.22485632,89.088,89.045,11.23027682]
[1772469155036,8.07876083,89.08,89.033,11.23179045]
[1772469155249,10.35217384,89.08,89.034,2.42286145]
[1772469155538,2.27341301,89.079,89.034,2.42286145]
[1772469156243,39.28699712,89.088,89.034,2.42286145]
[1772469156443,2.27457153,89.087,89.034,2.42286145]
[1772469156639,8.07876083,89.08,89.034,2.42286145]
[1772469156840,8.07876083,89.06,89.022,2.42286145]
[1772469157046,11.22599041,89.079,89.024,2.42286145]
[1772469157556,2.27571674,89.104,89.032,2.42286145]
[1772469157724,28.05533657,89.11,89.034,2.42286145]
[1772469157725,11.22296667,89.103,89.034,2.42286145]
[1772469157926,2.2768488,89.111,89.052,2.42286145]
[1772469157927,11.22236549,89.108,89.052,2.42286145]
[1772469158146,11.22095176,89.119,89.062,2.42286145]
[1772469158342,2.2768488,89.137,89.072,2.42286145]
[1772469159044,39.26584095,89.136,89.074,2.42286145]
[1772469159246,39.26584095,89.136,89.073,39.2936131]
[1772469159247,0.1,89.14,89.078,2.42286145]
[1772469159462,0.1,89.14,89.096,2.42286145]
[1772469159749,0.1,89.14,89.112,2.42286145]
[1772469160051,0.1,89.14,89.085,2.70718459]
[1772469160347,0.1,89.14,89.085,2.42286145]
[1772469160348,8.0617426,89.12,89.085,2.42286145]
[1772469160539,11.21843413,89.139,89.058,11.22863751]
[1772469160540,8.0617426,89.09,89.058,11.22863751]
[1772469160743,2.27907406,89.099,89.058,11.22863751]
[1772469161129,11.22359648,89.098,89.052,2.42286145]
[1772469161330,8.0617426,89.12,89.062,2.42286145]
[1772469162234,8.0617426,89.11,89.062,2.42286145]
[1772469162762,10.3429911,89.12,89.062,2.42286145]
[1772469163240,8.0617426,89.11,89.064,2.42286145]
[1772469163832,2.28231702,89.119,89.064,2.42286145]
[1772469164040,84.13919988,89.138,89.072,2.42286145]
[1772469164041,8.0617426,89.13,89.072,2.42286145]
[1772469164527,2.28337327,89.129,89.072,2.42286145]
[1772469164727,8.0617426,89.12,89.072,2.42286145]
[1772469164951,2.28441739,89.109,89.063,11.22800714]
[1772469165149,11.22233693,89.108,89.062,2.42286145]
[1772469165357,11.22095176,89.119,89.062,2.42286145]
[1772469165545,8.0617426,89.11,89.062,2.42286145]
[1772469166337,10.34719211,89.11,89.062,2.42286145]
[1772469166636,11.22095176,89.119,89.066,2.42286145]
[1772469166839,11.22095176,89.119,89.072,2.42286145]
[1772469167052,2.28646978,89.135,89.082,2.42286145]
[1772469167239,2.28646978,89.135,89.084,2.42939611]
[1772469167240,41.5528628,89.135,89.084,2.42939611]
[1772469167843,2.27828532,89.134,89.084,2.42939611]
[1772469168735,2.27828532,89.134,89.058,101.05773764]
[1772469168736,2.27828532,89.119,89.073,11.2267466]
[1772469168941,2.27828532,89.119,89.074,2.42939611]
[1772469169146,0.1,89.14,89.075,0.14216157]
[1772469169147,11.21866029,89.138,89.075,0.14216157]
[1772469169344,11.21866029,89.138,89.073,84.2005995]
[1772469169345,11.21866029,89.138,89.084,2.42939611]
[1772469170240,0.1,89.14,89.087,2.71371925]
[1772469170551,11.21390524,89.175,89.113,2.42939611]
[1772469170752,11.21390524,89.175,89.123,2.42939611]
[1772469171467,11.2122707,89.188,89.133,2.42939611]
[1772469171636,2.27828532,89.187,89.133,2.42939611]
[1772469171837,2.27828532,89.179,89.133,2.42939611]
[1772469172454,39.24294747,89.188,89.133,2.42939611]
[1772469172636,11.2122707,89.188,89.133,2.42939611]
[1772469173158,0.1,89.2,89.144,0.28432314]
[1772469173339,0.1,89.2,89.162,0.28432314]
[1772469173543,0.1,89.2,89.155,39.25747294]
[1772469173544,0.1,89.2,89.163,2.42939611]
[1772469174049,11.20711876,89.229,89.173,2.42939611]
[1772469174559,39.22491566,89.229,89.173,2.42939611]
[1772469175258,39.22491566,89.229,89.156,2.42939611]
[1772469175259,2.27828532,89.219,89.156,2.42939611]
[1772469175559,8.0617426,89.19,89.157,11.21616922]
[1772469175857,2.27828532,89.199,89.157,11.21616922]
[1772469176154,2.27828532,89.209,89.158,2.42939611]
[1772469176754,11.20850052,89.218,89.162,2.42939611]
[1772469177432,28.02086482,89.22,89.164,2.42939611]
[1772469177940,11.20684048,89.232,89.167,2.71371925]
[1772469178352,1.08655409,89.239,89.175,0.14216157]
[1772469178654,41.499245,89.238,89.186,2.42939611]
[1772469179042,11.20598848,89.238,89.192,2.42939611]
[1772469179855,11.20598848,89.238,89.194,2.42939611]
[1772469180455,2.27828532,89.219,89.149,2.42939611]
[1772469180648,2.27828532,89.199,89.15,2.42939611]
[1772469180851,2.27828532,89.209,89.15,2.42939611]
[1772469181339,8.0617426,89.23,89.153,2.42939611]
[1772469181541,8.0617426,89.23,89.152,3.69383402]
[1772469181542,1.08655409,89.239,89.164,4.82477569]
[1772469181843,1.08655409,89.239,89.192,2.42939611]
[1772469182039,44.79104755,89.304,89.193,2.57155768]
[1772469182258,2.27828532,89.269,89.211,2.42939611]
[1772469182556,2.27828532,89.269,89.213,2.42939611]
[1772469182739,2.27828532,89.249,89.2,2.42939611]
[1772469182936,8.0617426,89.23,89.187,2.42939611]
[1772469183136,2.27828532,89.209,89.136,2.42939611]
[1772469183357,2.27828532,89.199,89.136,2.42939611]
[1772469183570,2.27828532,89.199,89.14,2.42939611]
[1772469183751,8.0617426,89.21,89.144,2.42939611]
[1772469184063,8.0617426,89.19,89.144,2.42939611]
[1772469184357,2.27828532,89.189,89.144,2.42939611]
[1772469185561,2.27828532,89.189,89.0,36.02386813]
[1772469185562,8.0617426,89.18,89.131,2.42939611]
[1772469185747,11.21340225,89.179,89.133,2.42939611]
[1772469186666,2.27828532,89.159,89.099,2.42939611]
[1772469186850,8.0617426,89.12,89.04,2.42939611]
[1772469187159,8.0617426,89.11,89.043,2.42939611]
[1772469187363,8.0617426,89.12,89.043,2.42939611]
[1772469187557,8.0617426,89.12,89.051,2.42939611]
[1772469187753,11.22347052,89.099,89.055,2.42939611]
[1772469187964,2.27828532,89.117,89.055,2.42939611]
[1772469188144,11.22107767,89.118,89.055,2.42939611]
[1772469188562,39.27377185,89.118,89.057,2.42939611]
[1772469188862,39.27377185,89.118,89.054,39.30199653]
[1772469188863,2.27828532,89.147,89.073,2.42939611]
[1772469189069,11.21755322,89.146,89.083,2.42939611]
[1772469189945,39.26143628,89.146,89.085,2.42939611]
[1772469190145,11.21755322,89.146,89.085,2.42939611]
[1772469190354,2.27828532,89.178,89.087,2.42939611]
[1772469190553,44.83810177,89.21,89.105,2.42939611]
[1772469190554,2.27828532,89.176,89.105,2.42939611]
[1772469190766,2.27828532,89.176,89.113,2.42939611]
[1772469190965,11.21365374,89.177,89.123,2.42939611]
[1772469191565,100.88070248,89.215,89.095,1.12239744]
[1772469191566,8.0617426,89.2,89.128,0.28432314]
[1772469191860,11.21051097,89.202,89.145,2.42939611]
[1772469192061,11.21051097,89.202,89.144,39.26231713]
[1772469192062,11.20887743,89.215,89.153,2.42939611]
[1772469192444,11.20887743,89.215,89.144,39.26231713]
[1772469192445,2.27828532,89.199,89.144,11.21780489]
[1772469192657,2.27828532,89.179,89.104,0.28432314]
[1772469192850,2.27828532,89.179,89.113,2.42939611]
[1772469193059,8.0617426,89.16,89.1,41.71110205]
[1772469193364,8.0617426,89.13,89.058,2.42939611]
[1772469193551,8.0617426,89.18,89.058,2.42939611]
[1772469193552,2.27828532,89.119,89.058,2.42939611]
[1772469194060,8.0617426,89.09,89.046,13.65945008]
[1772469194266,10.34002792,89.09,89.05,11.42960892]
[1772469194567,2.27828532,89.09,89.05,11.42960892]
[1772469194752,10.34002792,89.09,89.05,11.42960892]
[1772469194959,2.36734134,89.089,89.05,0.2]
[1772469195460,2.36734134,89.089,88.942,33.7]
[1772469195461,2.36734134,89.059,89.004,2.32154254]
[1772469195664,8.0617426,89.05,89.004,2.32154254]
[1772469195863,2.36734134,89.059,89.004,2.32154254]
[1772469196068,10.42908394,89.04,88.992,11.23696512]
[1772469196267,2.36734134,89.039,88.992,11.23696512]
[1772469196450,2.36734134,89.019,88.978,11.23873316]
[1772469196651,2.36734134,89.019,88.978,39.33556608]
[1772469196955,39.3002313,89.058,88.959,11.24113355]
[1772469196956,0.14216157,89.033,88.959,11.24113355]
[1772469197163,2.36734134,89.02,88.96,2.32154254]
[1772469197369,2.36734134,89.02,88.962,2.43718623]
[1772469197868,2.41512075,89.019,88.96,2.43718623]
[1772469198073,11.23368307,89.018,88.962,2.43718623]
[1772469198251,2.41512075,89.019,88.962,2.43718623]
[1772469198445,2.41512075,88.999,88.961,11.24088083]
[1772469198664,2.41512075,88.999,88.947,2.43718623]
[1772469198863,2.41512075,88.999,88.951,11.24214455]
[1772469199070,2.41512075,88.999,88.951,13.67933078]
[1772469199255,2.41512075,88.999,88.952,2.43718623]
[1772469199666,39.31789075,89.018,88.952,2.43718623]
[1772469199667,8.0617426,89.01,88.952,2.43718623]
[1772469199869,2.41648556,89.014,88.952,2.43718623]
[1772469200168,2.41648556,89.012,88.954,2.43718623]
[1772469200365,10.47822816,89.0,88.954,2.43718623]
[1772469200668,2.41648556,89.0,88.954,2.43718623]
[1772469200968,11.23431408,89.013,88.954,2.43718623]
[1772469201272,11.2336,89.019,88.962,2.43718623]
[1772469202176,11.2326736,89.026,88.964,2.43718623]
[1772469202477,2.41781919,89.019,88.963,11.24062812]
[1772469202658,2.41847454,88.999,88.94,2.63718623]
[1772469202856,2.41847454,88.999,88.955,11.24163903]
[1772469203055,8.0617426,89.01,88.956,2.43718623]
[1772469203261,10.48021714,89.01,88.956,2.43718623]
[1772469203455,2.41847454,89.009,88.955,11.24163903]
[1772469203759,2.41847454,88.999,88.955,11.24163903]
[1772469204168,2.41912237,89.014,88.956,2.43718623]
[1772469204462,8.0617426,89.02,88.958,2.43718623]
[1772469204463,2.41912237,89.009,88.958,2.43718623]
[1772469204771,2.41976275,88.999,88.955,11.241546]
[1772469205167,84.2508438,89.02,88.956,2.43718623]
[1772469205168,8.0617426,89.01,88.956,2.43718623]
[1772469205358,2.41976275,89.012,88.956,2.43718623]
[1772469205889,19.29528693,89.02,88.956,2.43718623]
[1772469206379,47.37886365,89.02,88.958,2.43718623]
[1772469206552,2.42102153,89.009,88.958,2.43718623]
[1772469206756,10.48276413,89.0,88.958,2.43718623]
[1772469206958,2.42102153,88.999,88.957,11.24138628]
[1772469207379,2.42102153,88.979,88.94,0.2]
[1772469207763,2.0216401,88.969,88.931,11.24467283]
[1772469208074,2.0216401,88.997,88.932,2.43718623]
[1772469208254,11.23646006,88.996,88.933,11.24441995]
[1772469208455,2.0216401,89.024,88.943,0.28432314]
[1772469208671,2.0216401,89.024,88.952,2.43718623]
[1772469208855,2.02225157,89.019,88.952,2.43718623]
[1772469209679,8.0617426,89.01,88.952,2.43718623]
[1772469209874,2.02285601,88.999,88.952,2.43718623]
[1772469210069,2.02285601,89.019,88.952,2.43718623]
[1772469210470,11.23368307,89.018,88.954,2.43718623]
[1772469210673,10.28555763,89.018,88.959,2.43718623]
[1772469210868,38.36976531,89.018,88.963,2.43718623]
[1772469211073,2.02345351,89.009,88.954,2.43718623]
[1772469211269,2.02345351,88.999,88.953,11.24189178]
[1772469212291,38.36976531,89.018,88.924,2.43718623]
[1772469212292,2.02404414,88.979,88.924,2.43718623]
[1772469212489,8.0617426,88.97,88.931,11.24467283]
[1772469212782,2.02404414,88.969,88.931,11.24467283]
[1772469213580,2.02404414,88.969,88.926,11.24525364]
[1772469213787,2.02404414,88.969,88.931,11.24467283]
[1772469213965,2.0251454,88.939,88.906,1e-08]
[1772469214171,2.0251454,88.939,88.891,11.24963099]
[1772469214172,8.0617426,88.92,88.891,11.24963099]
[1772469214393,10.086888,88.93,88.89,11.44978683]
[1772469214690,11.2437878,88.938,88.891,2.43718623]
[1772469214863,11.24326057,88.943,88.891,2.43718623]
[1772469215065,11.24239732,88.949,88.893,2.43718623]
[1772469215259,2.02567355,88.948,88.89,39.57443527]
[1772469215464,16.1234852,88.9,88.81,60.0]
[1772469215677,8.0617426,88.87,88.826,11.25786774]
[1772469216081,8.0617426,88.87,88.82,2.49396907]
[1772469216282,342.89311849,88.949,88.822,2.49396907]
[1772469216283,8.0617426,88.89,88.822,2.49396907]
[1772469216473,8.0617426,88.89,88.824,2.49396907]
[1772469216684,39.37052159,88.899,88.824,2.49396907]
[1772469216685,8.0617426,88.88,88.824,2.49396907]
[1772469217079,8.0617426,88.87,88.824,2.49396907]
[1772469217387,0.28432314,88.898,88.824,2.49396907]
[1772469217388,8.0617426,88.88,88.824,2.49396907]
[1772469217590,11.24707576,88.912,88.827,2.77829221]
[1772469217964,8.0617426,88.93,88.838,2.49396907]
[1772469218169,8.0617426,88.9,88.843,2.49396907]
[1772469218388,0.14216157,88.93,88.844,11.25568412]
[1772469218590,219.33933784,88.961,88.832,2.49396907]
[1772469218591,8.10711439,88.89,88.832,2.49396907]
[1772469218806,8.10711439,88.9,88.832,2.49396907]
[1772469219288,8.10711439,88.92,88.84,2.49396907]
[1772469219466,8.10711439,88.92,88.844,2.49396907]
[1772469219667,3.69383402,88.951,88.853,0.28432314]
[1772469219981,286.64246128,88.961,88.862,2.49396907]
[1772469219982,8.10711439,88.91,88.862,2.49396907]
[1772469220462,8.10711439,88.9,88.863,11.25327751]
[1772469220662,39.36609341,88.909,88.863,11.25327751]
[1772469220893,11.24745526,88.909,88.864,2.49396907]
[1772469221275,8.10711439,88.88,88.805,2.49396907]
[1772469221473,8.10711439,88.89,88.805,2.49396907]
[1772469221677,8.10711439,88.89,88.808,2.49396907]
[1772469221887,8.10711439,88.87,88.808,2.49396907]
[1772469222200,8.10711439,88.88,88.808,2.49396907]
[1772469222383,11.25251775,88.869,88.809,39.41042011]
[1772469222579,11.25251775,88.869,88.81,2.49396907]
[1772469222783,8.10711439,88.85,88.81,2.49396907]
[1772469223285,8.10711439,88.86,88.81,2.49396907]
[1772469223503,0.28432314,88.868,88.81,2.49396907]
[1772469223676,11.25099852,88.881,88.813,2.49396907]
[1772469223872,39.37849483,88.881,88.813,2.49396907]
[1772469224090,11.25099852,88.881,88.814,0.28432314]
[1772469224287,11.25099852,88.881,88.812,3.69383402]
[1772469224288,8.10711439,88.89,88.833,2.49396907]
[1772469224597,11.25251775,88.869,88.815,2.49396907]
[1772469225184,11.2512517,88.879,88.815,2.49396907]
[1772469225590,39.37938095,88.879,88.815,2.49396907]
[1772469226389,8.10711439,88.87,88.815,2.49396907]
[1772469226599,8.10711439,88.88,88.817,2.49396907]
[1772469227773,11.53063997,88.918,88.823,2.49396907]
[1772469227993,8.10711439,88.9,88.823,2.49396907]
[1772469228176,8.10711439,88.89,88.823,2.49396907]
[1772469229097,8.10711439,88.88,88.823,2.49396907]
[1772469229298,0.28432314,88.914,88.823,2.49396907]
[1772469229479,8.10711439,88.88,88.823,2.49396907]
[1772469229788,39.37938095,88.879,88.825,2.49396907]
[1772469230494,8.10711439,88.87,88.825,2.49396907]
[1772469230698,39.37938095,88.879,88.824,11.25821849]
[1772469230880,8.10711439,88.86,88.814,11.25948611]
[1772469231696,39.38824429,88.859,88.811,11.25986645]
[1772469233795,8.10711439,88.85,88.81,2.49396907]
[1772469233981,8.10711439,88.85,88.8,0.2]
[1772469234184,8.10711439,88.84,88.8,0.2]
[1772469234385,8.10711439,88.85,88.8,0.2]
[1772469234695,8.10711439,88.84,88.801,11.26113444]
[1772469235197,11.25378408,88.859,88.802,2.49396907]
[1772469235494,8.10711439,88.85,88.802,2.49396907]
[1772469235884,39.38824429,88.859,88.804,2.49396907]
[1772469235885,11.2550507,88.849,88.804,2.49396907]
[1772469236292,11.25391073,88.858,88.804,2.49396907]
[1772469237789,44.99795737,88.893,88.8,0.2]
[1772469237790,11.2512517,88.879,88.805,39.41219525]
[1772469237977,39.37938095,88.879,88.806,2.49396907]
[1772469238187,8.10711439,88.87,88.806,2.49396907]
[1772469238395,8.10711439,88.86,88.806,2.49396907]
[1772469238896,0.28432314,88.878,88.806,2.49396907]
[1772469238897,8.10711439,88.85,88.806,2.49396907]
[1772469239074,8.10711439,88.84,88.805,11.26062721]
[1772469239577,8.10711439,88.85,88.805,11.26062721]
[1772469239782,8.10711439,88.85,88.806,2.49396907]
[1772469239992,11.2550507,88.849,88.807,13.75434268]
[1772469240307,39.39267746,88.849,88.8,0.2]
[1772469240604,11.2550507,88.849,88.802,2.49396907]
[1772469240780,39.39267746,88.849,88.802,2.49396907]
[1772469240984,39.37229314,88.895,88.802,2.49396907]
[1772469241301,8.10711439,88.84,88.801,11.26113444]
[1772469241974,11.2563176,88.839,88.802,2.49396907]
[1772469242183,8.10711439,88.87,88.802,2.49396907]
[1772469242381,8.10711439,88.83,88.8,11.46117771]
[1772469242596,0.28432314,88.88,88.8,11.46117771]
[1772469242784,8.10711439,88.86,88.801,2.49396907]
[1772469243603,8.10711439,88.87,88.801,2.49396907]
[1772469244004,39.38824429,88.859,88.803,2.49396907]
[1772469244396,11.25378408,88.859,88.803,2.49396907]
[1772469244809,11.03146408,88.859,88.804,2.49396907]
[1772469246212,8.10711439,88.86,88.806,2.49396907]
[1772469247348,8.10711439,88.85,88.8,0.2]
[1772469247484,8.10711439,88.82,88.8,0.2]
[1772469247685,8.10711439,88.82,88.8,1e-08]
[1772469248098,3.69383402,88.857,88.8,1e-08]
[1772469248299,0.28432314,88.856,88.8,1e-08]
[1772469248490,8.10711439,88.82,88.8,1e-08]
[1772469248694,8.10711439,88.81,88.734,1.12696373]
[1772469248886,0.28432314,88.826,88.736,2.49396907]
[1772469249086,3.69383402,88.827,88.736,2.49396907]
[1772469249324,8.10711439,88.8,88.736,2.49396907]
[1772469249612,8.10711439,88.78,88.736,2.49396907]
[1772469249829,8.10711439,88.77,88.736,2.49396907]
[1772469250109,8.10711439,88.77,88.735,11.26951033]
[1772469250306,11.26459264,88.774,88.731,11.27001837]
[1772469250609,11.26459264,88.774,88.732,2.49396907]
[1772469250789,8.10711439,88.77,88.732,2.49396907]
[1772469251102,8.10711439,88.79,88.732,2.49396907]
[1772469251698,8.10711439,88.8,88.732,2.49396907]
[1772469252308,8.10711439,88.78,88.734,2.49396907]
[1772469253127,8.10711439,88.79,88.734,2.49396907]
[1772469253293,0.28432314,88.818,88.728,0.2743145]
[1772469253491,3.69383402,88.798,88.728,0.2743145]
[1772469253693,8.10711439,88.75,88.728,0.2743145]
[1772469253897,8.10711439,88.76,88.728,0.2743145]
[1772469254194,11.26646311,88.759,88.728,0.2743145]
[1772469254912,8.10711439,88.75,88.728,0.2743145]
[1772469255118,8.10711439,88.75,88.706,2.49396907]
[1772469255489,39.4326209,88.759,88.689,28.1883801]
[1772469255490,8.10711439,88.74,88.689,28.1883801]
[1772469255691,8.10711439,88.72,88.681,2.49396907]
[1772469255897,0.28432314,88.758,88.673,2.49396907]
[1772469256100,8.10711439,88.73,88.673,2.49396907]
[1772469256304,8.10711439,88.73,88.651,3.69383402]
[1772469256305,11.2702724,88.729,88.675,2.49396907]
[1772469256507,8.10711439,88.72,88.675,2.49396907]
[1772469256712,39.4459534,88.729,88.675,2.49396907]
[1772469256922,45.07049653,88.75,88.675,2.49396907]
[1772469256923,8.10711439,88.75,88.675,2.49396907]
[1772469257108,8.10711439,88.73,88.675,2.49396907]
[1772469257340,8.10711439,88.76,88.675,2.49396907]
[1772469257501,8.10711439,88.73,88.675,2.49396907]
[1772469257817,8.10711439,88.74,88.675,2.49396907]
[1772469258216,39.42817875,88.769,88.677,2.49396907]
[1772469258518,8.10711439,88.75,88.677,2.49396907]
[1772469259033,45.02106358,88.848,88.683,2.49396907]
[1772469259201,8.10711439,88.78,88.705,2.49396907]
[1772469259394,8.10711439,88.78,88.707,2.49396907]
[1772469259596,8.10711439,88.8,88.724,0.28432314]
[1772469259795,8.10711439,88.81,88.733,2.49396907]
[1772469260013,8.10711439,88.8,88.733,2.49396907]
[1772469260196,45.02106358,88.848,88.733,2.49396907]
[1772469260197,8.10711439,88.78,88.733,2.49396907]
[1772469260397,8.10711439,88.77,88.733,2.49396907]
[1772469260600,8.10711439,88.75,88.716,2.49396907]
[1772469260799,8.10711439,88.76,88.716,13.76589296]
[1772469261015,8.10711439,88.75,88.703,2.49396907]
[1772469261217,129.53513778,88.779,88.67,2.49396907]
[1772469261218,8.10711439,88.72,88.67,2.49396907]
[1772469261724,3.69383402,88.76,88.67,2.49396907]
[1772469262033,0.28432314,88.759,88.67,2.49396907]
[1772469262198,8.10711439,88.71,88.67,2.49396907]
[1772469262396,3.69383402,88.757,88.672,2.49396907]
[1772469262596,39.40154678,88.829,88.68,2.49396907]
[1772469262898,8.10711439,88.8,88.702,2.63613064]
[1772469263119,174.49256435,88.829,88.716,2.49396907]
[1772469263301,8.10711439,88.79,88.716,2.49396907]
[1772469263499,8.10711439,88.81,88.731,0.28432314]
[1772469263800,11.25758479,88.829,88.755,0.14216157]
[1772469264001,8.10711439,88.84,88.766,2.49396907]
[1772469264399,8.10711439,88.83,88.768,2.49396907]
[1772469264595,8.10711439,88.81,88.768,2.49396907]
[1772469264902,8.10711439,88.82,88.768,2.49396907]
[1772469265106,8.10711439,88.81,88.768,2.49396907]
[1772469265998,8.10711439,88.79,88.754,2.49396907]
[1772469266200,8.10711439,88.8,88.754,2.49396907]
[1772469266423,8.10711439,88.82,88.756,2.49396907]
[1772469266718,8.10711439,88.8,88.756,2.49396907]
[1772469266917,3.69383402,88.852,88.756,2.49396907]
[1772469267117,8.10711439,88.84,88.766,2.49396907]
[1772469267304,8.10711439,88.83,88.766,2.49396907]
[1772469267909,45.00905807,88.871,88.766,2.49396907]
[1772469267910,8.10711439,88.8,88.766,2.49396907]
[1772469268295,8.10711439,88.81,88.766,2.49396907]
[1772469268511,8.10711439,88.8,88.745,2.49396907]
[1772469268707,39.41042011,88.809,88.745,2.49396907]
[1772469268909,39.41042011,88.809,88.747,2.49396907]
[1772469269518,8.10711439,88.78,88.733,2.49396907]
[1772469269915,8.10711439,88.79,88.733,2.49396907]
[1772469270115,8.10711439,88.78,88.733,2.49396907]
[1772469270636,39.42373758,88.779,88.734,2.49396907]
[1772469270934,8.10711439,88.79,88.734,2.49396907]
[1772469271145,11.26265641,88.789,88.734,2.49396907]
[1772469271320,45.03487202,88.821,88.733,39.44417521]
[1772469271321,8.10711439,88.82,88.736,2.49396907]
[1772469271637,11.25353079,88.861,88.762,2.49396907]
[1772469271828,11.25353079,88.861,88.782,2.49396907]
[1772469271829,39.18735777,88.861,88.782,2.49396907]
[1772469272027,28.12634182,88.885,88.793,0.28432314]
[1772469272226,28.12634182,88.885,88.77,3.69383402]
[1772469272227,11.25087194,88.882,88.81,2.49396907]
[1772469272407,39.37805179,88.882,88.816,2.49396907]
[1772469272607,8.10711439,88.87,88.818,2.49396907]
[1772469272831,8.10711439,88.88,88.818,2.49396907]
[1772469273218,8.10711439,88.87,88.818,2.49396907]
[1772469273629,8.10711439,88.88,88.818,2.49396907]
[1772469273820,39.37805179,88.882,88.818,2.49396907]
[1772469274132,8.10711439,88.87,88.818,2.49396907]
[1772469274333,8.10711439,88.83,88.788,2.49396907]
[1772469274514,8.10711439,88.85,88.791,2.49396907]
[1772469275039,8.10711439,88.86,88.791,2.49396907]
[1772469275915,8.10711439,88.84,88.791,2.49396907]
[1772469276115,8.10711439,88.83,88.791,2.49396907]
[1772469276516,84.39483277,88.868,88.791,2.49396907]
[1772469276720,8.10711439,88.85,88.793,2.49396907]
[1772469277941,185.6686321,88.868,88.793,2.49396907]
[1772469278243,8.10711439,88.85,88.793,2.49396907]
[1772469278627,11.2563176,88.839,88.795,2.49396907]
[1772469279331,11.2563176,88.839,88.739,45.07556444]
[1772469279332,8.10711439,88.83,88.744,2.49396907]
[1772469279668,8.10711439,88.81,88.746,2.49396907]
[1772469280155,8.10711439,88.8,88.746,2.49396907]
[1772469280650,8.12355558,88.79,88.748,2.49396907]
[1772469281734,8.12355558,88.8,88.748,2.49396907]
[1772469282253,3.69383402,88.834,88.748,2.49396907]
[1772469282254,8.12355558,88.81,88.748,2.49396907]